Cogmind - Beta 15 --- EXPLORER MODE // 2025.10.18 @ 19:26:37 Player: swetpototo Result: Self-destructed Performance ------------- Evolutions (1) 500 Regions Visited (4) 800 Robots Destroyed (10) 50 Value Destroyed (264) 264 Prototype IDs (0) 0 Alien Tech Used (0) 0 Bonus (200) 200 TOTAL SCORE: 1814 Bonus ------- Pacifist 200 Cogmind --------- Core Integrity 382/400 Matter 300/300 Energy 125/125 System Corruption 0% Temperature Cool (0) Movement Walking (120) Location -9/Exiles Parts ------- > --- POWER (2) -------- Light Ion Engine > --- PROPULSION (2) --- Aluminum Leg Aluminum Leg > --- UTILITY (2) ------ Medium Storage Unit Core Shielding > --- WEAPON (4) ------- EM Pulse Gun Heavy EM Pulse Gun Small Laser > --- INVENTORY (10) --- Ion Engine Armored Wheel Improved Heat Sink High-capacity Matter Pod (200) Experimental Sensor Array ECM Suite Light Armor Plating EM Pulse Gun Grenade Launcher Hammer Peak State ------------ > --- POWER ------------ Light Ion Engine > --- PROPULSION ------- Aluminum Leg Aluminum Leg > --- UTILITY ---------- Medium Storage Unit Core Shielding > --- WEAPON ----------- EM Pulse Gun Heavy EM Pulse Gun Small Laser > --- INVENTORY -------- Ion Engine Armored Wheel Improved Heat Sink High-capacity Matter Pod Structural Scanner Experimental Sensor Array ECM Suite EM Pulse Gun Grenade Launcher Hammer [Rating: 11] Favorites ----------- Power Light Ion Engine Engine Light Ion Engine Propulsion Aluminum Leg Leg Aluminum Leg Utility Medium Storage Unit Storage Medium Storage Unit Protection Core Shielding Weapon EM Pulse Gun Energy Gun EM Pulse Gun Build | -11 -10 -9 -9 -9 ------- Run | Yrd Mat Mat Min Exi Slots Evolved 3 | . 1 2 . . Power 1 | . 1 . . . Propulsion . | . . . . . Utility . | . . . . . Weapon 2 | . . 2 . . Parts Attached 2 | . 1 . 1 . Power 1 | . 1 . . . Engine 1 | . 1 . . . Core . | . . . . . Reactor . | . . . . . Propulsion . | . . . . . Treads . | . . . . . Leg . | . . . . . Wheel . | . . . . . Hover . | . . . . . Flight . | . . . . . Utility . | . . . . . Device . | . . . . . Storage . | . . . . . Processor . | . . . . . Hackware . | . . . . . Protection . | . . . . . Artifact . | . . . . . Weapon 1 | . . . 1 . Energy Gun 1 | . . . 1 . Energy Cannon . | . . . . . Ballistic Gun . | . . . . . Ballistic Cannon . | . . . . . Launcher . | . . . . . Special Weapon . | . . . . . Impact Weapon . | . . . . . Slashing Weapon . | . . . . . Piercing Weapon . | . . . . . Special Melee Weapon . | . . . . . Unidentified Prototypes . | . . . . . Parts Lost 1 | . . . 1 . Power 1 | . . . 1 . Propulsion . | . . . . . Utility . | . . . . . Weapon . | . . . . . Highest Loss Streak 1 | . . . 1 . To Critical Strikes . | . . . . . Average Backups 9 | . 8 9 10 10 Power 1 | . 1 1 1 1 Propulsion 2 | . 2 2 1 1 Utility 4 | . 4 5 4 5 Weapon 1 | . 1 1 2 3 Tool/Special . | . . . . . Unused Backups 22 | . 7 . 5 10 Power 2 | . 1 . . 1 Propulsion 5 | . 2 . 2 1 Utility 10 | . 2 . 3 5 Weapon 5 | . 2 . . 3 Tool/Special . | . . . . . Average Slot Usage (%) 81 | . 97 80 79 80 Engine 17 | . 22 20 15 10 Leg 20 | . 25 20 20 20 Storage 10 | . 12 10 10 10 Protection 10 | . 12 10 10 10 Energy Gun 23 | . 25 20 23 30 Peak Build Rating 11 | . 8 9 11 11 Average Rating 9 | . 7 8 9 11 On Entrance 8 | 7 7 8 9 11 Naked Turns . | . . . . . Heaviest Build 20 | 17 20 20 20 20 Greatest Support 20 | 20 20 20 20 20 Greatest Overweight (x) . | . . . . . Average Overweight (x) . | . . . . . Largest Inventory Capacity 10 | . 10 10 10 10 Average Capacity 10 | . 10 10 10 10 Most Carried 10 | . 9 10 10 10 Average Carried 9 | . 8 9 9 10 Final Capacity 10 | 10 10 10 10 10 Final Carried 10 | 7 9 10 10 10 Class Distribution -------------------- 72% | Hacker-Mutant 27% | Hacker-Tank Dominant Class ---------------- Hacker-Mutant | -10/Materials Hacker-Mutant | -9/Materials Hacker-Mutant | -9/Mines Hacker-Tank | -9/Exiles Resources | -11 -10 -9 -9 -9 ----------- Run | Yrd Mat Mat Min Exi Matter Collected 418 | 166 84 . 168 . Remotely . | . . . . . Salvage Created 321 | . . . 321 . Parts 22 | . . . 22 . Haulers Intercepted . | . . . . . Recyclers Shooed . | . . . . . Parts Field Recycled . | . . . . . Retrieved Matter . | . . . . . Parts Self-Destructed . | . . . . . Prevented . | . . . . . Kills | -11 -10 -9 -9 -9 ------- Run | Yrd Mat Mat Min Exi Combat Hostiles Destroyed 12 | . . . 12 . Guns 12 | . . . 12 . Classes Destroyed 5 | . . . 5 . Swarmer 5 | . . . 5 . Grunt 3 | . . . 3 . Brawler 1 | . . . 1 . Demolisher 1 | . . . 1 . Assembled 2 | . . . 2 . Best Kill Streak 5 | . . . 5 . Combat Bots Only 5 | . . . 5 . Max Kills in Single Turn 2 | . . . 2 . Gunslinging 1 | . . . 1 . Exploded . | . . . . . Melee . | . . . . . Uniques/NPCs Destroyed . | . . . . . Combat | -11 -10 -9 -9 -9 -------- Run | Yrd Mat Mat Min Exi Hostile Shots Fired 32 | . . 5 27 . Missed 14 | . . 1 13 . Hits 18 | . . 4 14 . Projectile 18 | . . 4 14 . AOE 4 | . . . 4 . Critical Strikes 1 | . . 1 . . Damage Taken 184 | . . 37 147 . Core 18 | . . . 18 . Absorbed by Shields . | . . . . . Redirected to Shielding 4 | . . . 4 . Ignored by Resistances 114 | . . 24 90 . Core Remaining (%) 100 | 100 100 . . . Volleys Fired 21 | . . . 21 . Largest 3 | . . . 3 . Hottest 125 | . . . 125 . Shots Fired 47 | . . . 47 . Gun 47 | . . . 47 . Cannon . | . . . . . Launcher . | . . . . . Special . | . . . . . Kinetic . | . . . . . Thermal 21 | . . . 21 . Explosive . | . . . . . Electromagnetic 26 | . . . 26 . Robot Hit Streak 14 | . . . 14 . Robot Miss Streak 2 | . . . 2 . Penetration Max . | . . . . . Secondary Targets 2 | . . . 2 . Max Gunslinging Chain 1 | . . . 1 . Shots Hit Robots 36 | . . . 36 . Core Hits 20 | . . . 20 . Critical Kills . | . . . . . Critical Parts Destroyed . | . . . . . Critical Strikes . | . . . . . Melee Attacks . | . . . . . Impact . | . . . . . Slashing . | . . . . . Piercing . | . . . . . Sneak Attacks . | . . . . . Combat Hostiles . | . . . . . Follow-up Attacks . | . . . . . Damage Inflicted 429 | . . . 429 . Guns 424 | . . . 424 . Cannons . | . . . . . Explosions . | . . . . . Melee . | . . . . . Ramming 5 | . . . 5 . Kinetic . | . . . . . Thermal 176 | . . . 176 . Explosive . | . . . . . Electromagnetic 248 | . . . 248 . Impact . | . . . . . Slashing . | . . . . . Piercing . | . . . . . Highest Corruption . | . . . . . Average Corruption . | . . . . . Corruption Purged . | . . . . . Corruption Blocked . | . . . . . Overload Shots . | . . . . . Overflow Damage . | . . . . . Projectiles . | . . . . . Explosions . | . . . . . Melee . | . . . . . Knockbacks . | . . . . . Impact . | . . . . . Kinetic . | . . . . . Secondary . | . . . . . Self-Inflicted Damage . | . . . . . Shots . | . . . . . Rammed . | . . . . . Targets Rammed 1 | . . . 1 . Kicked 1 | . . . 1 . Crushed . | . . . . . Highest Temperature 204 | . . 11 204 . Average Temperature 69 | . . 11 70 . Received Heat Transfer 84 | . . 51 33 . Siege Activations . | . . . . . Martial Activations . | . . . . . Shielding Activations . | . . . . . Robots Disrupted . | . . . . . Combat Hostiles . | . . . . . Robots Corrupted . | . . . . . Combat Hostiles . | . . . . . Parts Fried . | . . . . . Impact Corruptions . | . . . . . Robots Melted . | . . . . . Combat Hostiles . | . . . . . Parts Melted . | . . . . . Heat Transferred 400 | . . . 400 . Parts Sabotaged . | . . . . . Parts Stolen . | . . . . . Parts Stripped . | . . . . . Power Chain Reactions . | . . . . . Alert | -11 -10 -9 -9 -9 ------- Run | Yrd Mat Mat Min Exi Maximum Alert Level . | . . . . . Low Security (%) 100 | . 100 100 100 . Level 1 . | . . . . . Level 2 . | . . . . . Level 3 . | . . . . . Level 4 . | . . . . . Level 5 . | . . . . . High Security . | . . . . . Max Security . | . . . . . Peak Influence 105 | . 4 . 105 . Initial . | . . . . . Average 12 | . . . 17 . Influence Increases 248 | . 4 . 244 . Destroy 0b10 Robot/C 200 | . . . 200 . Destroy Leader 40 | . . . 40 . Successful Hack 4 | . 4 . . . Disable Machine 4 | . . . 4 . Influence Decreases 248 | . 4 . 244 . Time Decay 238 | . 4 . 234 . Lost Part 10 | . . . 10 . Squads Dispatched 2 | . . 2 . . Investigation . | . . . . . Extermination . | . . . . . Reinforcement 2 | . . 2 . . Assault . | . . . . . Garrison . | . . . . . Intercept . | . . . . . Searches Triggered . | . . . . . Construction Impeded . | . . . . . Haulers Reinforced . | . . . . . Active Scanning Responses . | . . . . . Cargo Convoy Interrupts . | . . . . . Stealth | -11 -10 -9 -9 -9 --------- Run | Yrd Mat Mat Min Exi Distress Signals 1 | . . 1 . . Communications Jammed . | . . . . . Distress Signals . | . . . . . Times Spotted 18 | . . 5 13 . Peak Tracking Total 3 | . . 3 3 . Tactical Retreats . | . . . . . Traps | -11 -10 -9 -9 -9 ------- Run | Yrd Mat Mat Min Exi Traps Triggered . | . . . . . Indirectly . | . . . . . Trap Hack Attempts . | . . . . . Triggered . | . . . . . Disarmed . | . . . . . Reprogrammed . | . . . . . Reused . | . . . . . Traps Extracted . | . . . . . Installed . | . . . . . Triggered . | . . . . . Machines | -11 -10 -9 -9 -9 ---------- Run | Yrd Mat Mat Min Exi Machines Disabled 1 | . . . 1 . Max in Single Turn 1 | . . . 1 . Machines Repaired . | . . . . . Machines Dismantled . | . . . . . Machines Sabotaged . | . . . . . Overloaded Fab Kills . | . . . . . Hacking | -11 -10 -9 -9 -9 --------- Run | Yrd Mat Mat Min Exi Machines Accessed 4 | . 2 2 . . Terminals 3 | . 1 2 . . Fabricators . | . . . . . Repair Stations . | . . . . . Recycling Units 1 | . 1 . . . Scanalyzers . | . . . . . Garrison Access . | . . . . . Total Hacks 4 | . 2 2 . . Successful 4 | . 2 2 . . Failed . | . . . . . Catastrophic . | . . . . . Database Lockouts . | . . . . . Manual 1 | . 1 . . . Terminals 3 | . 1 2 . . Fabricators . | . . . . . Repair Stations . | . . . . . Recycling Units 1 | . 1 . . . Scanalyzers . | . . . . . Garrison Access . | . . . . . Terminal Hacks 3 | . 1 2 . . Terminal Index 1 | . . 1 . . Zone Layout 2 | . 1 1 . . Fabricator Hacks . | . . . . . Repair Station Hacks . | . . . . . Recycling Unit Hacks 1 | . 1 . . . Retrieve Components 1 | . 1 . . . Scanalyzer . | . . . . . Garrison Access Hacks . | . . . . . Unauthorized Hacks . | . . . . . Terminals . | . . . . . Fabricators . | . . . . . Repair Stations . | . . . . . Recycling Units . | . . . . . Scanalyzers . | . . . . . Garrison Access . | . . . . . Data Cores Recovered . | . . . . . Used . | . . . . . Hacking Detections 2 | . 1 1 . . Full Trace Events . | . . . . . Feedback Events . | . . . . . Feedback Blocked . | . . . . . Robot Schematics Acquired . | . . . . . Robots Built . | . . . . . Authchips . | . . . . . Time . | . . . . . Total Robot Build Rating . | . . . . . Part Schematics Acquired . | . . . . . Parts Built . | . . . . . Authchips . | . . . . . Time . | . . . . . Total Part Build Rating . | . . . . . Parts Repaired . | . . . . . Time . | . . . . . Parts Recycled . | . . . . . Recycled Matter . | . . . . . Retrieved Matter . | . . . . . Retrieved Components 2 | . 2 . . . Parts Scanalyzed . | . . . . . Part Schematics Acquired . | . . . . . Parts Damaged . | . . . . . Bothacking | -11 -10 -9 -9 -9 ------------ Run | Yrd Mat Mat Min Exi Used RIF Installer . | . . . . . Robots Hacked . | . . . . . Non-combat . | . . . . . Combat . | . . . . . Robot Hacks Applied . | . . . . . Relay Couplers Released . | . . . . . Fabnet Peak Effective % . | . . . . . Robots Rewired . | . . . . . Allies Hacked . | . . . . . Hacks Repelled . | . . . . . Allies | -11 -10 -9 -9 -9 -------- Run | Yrd Mat Mat Min Exi Total Allies . | . . . . . Largest Group . | . . . . . Highest-Rated Group . | . . . . . Highest-Rated Ally . | . . . . . Total Orders . | . . . . . Ally Attacks . | . . . . . Total Damage . | . . . . . Kills . | . . . . . Allies Corrupted . | . . . . . Allies Melted . | . . . . . Intel | -11 -10 -9 -9 -9 ------- Run | Yrd Mat Mat Min Exi Active Infowar (turns) . | . . . . . Robot Analysis Total . | . . . . . Derelict Logs Recovered . | . . . . . Drone Launches . | . . . . . Drone Recoveries . | . . . . . Exploration | -11 -10 -9 -9 -9 ------------- Run | Yrd Mat Mat Min Exi Turns Passed 894 | . 110 121 649 14 Spaces Moved 679 | 1 89 101 477 11 Core . | . . . . . Treads . | . . . . . Legs 679 | 1 89 101 477 11 Wheels . | . . . . . Hover . | . . . . . Flight . | . . . . . Fastest Speed 120 | 120 120 120 120 120 Average Speed 120 | 120 120 120 120 120 Slowest Speed 120 | 120 120 120 120 120 Overloaded Moves . | . . . . . Propulsion Burnouts . | . . . . . Robots Hopped . | . . . . . Potential Cave-ins . | . . . . . Cave-ins Triggered . | . . . . . Exploration Rate (%) 26 | 2 20 17 90 5 Regions Visited 4 Branch Regions 2 Pre-discovered Areas . | . . . . . Known Exits Taken 4 | 1 1 1 1 . Unknown Exits Taken . | . . . . . Scrap Searched 2 | . . . 2 . Spaces Dug . | . . . . . Terrain Destroyed . | . . . . . Melee . | . . . . . Projectile . | . . . . . AOE . | . . . . . Terrain Rammed . | . . . . . Walls Destroyed . | . . . . . Machines Disabled . | . . . . . Actions | -11 -10 -9 -9 -9 --------- Run | Yrd Mat Mat Min Exi Total 715 | . 91 101 512 11 Wait 1 | . . . 1 . Move 675 | . 88 100 476 11 Hop . | . . . . . Pick Up 9 | . 2 1 6 . Fast Attach 2 | . 1 . 1 . Attach . | . . . . . Detach . | . . . . . Swap . | . . . . . Drop 6 | . . . 6 . Fire 21 | . . . 21 . Melee . | . . . . . Ram . | . . . . . Kick 1 | . . . 1 . Crush . | . . . . . Escape Stasis . | . . . . . Rewire . | . . . . . Trap . | . . . . . Miscellaneous . | . . . . . Route ------- -11/Scrapyard -10/Materials -9/Materials -9/Mines (discovered 3 exits: *Mat x2 / *Exi) -9/Exiles History --------- Turn | Location | Event 1 | -11/Scrapyard | Identified exit to Materials 1 | -11/Scrapyard | Discovered exit to Materials (range 0) 1 | -11/Scrapyard | Entered Materials 1 | -10/Materials | Evolved 1 slot: Power x1 76 | -10/Materials | Identified exit to Materials 76 | -10/Materials | Discovered exit to Materials (range 16) 111 | -10/Materials | Entered another Materials area 111 | -9/Materials | Evolved 2 slots: Weapon x2 225 | -9/Materials | Identified exit to Mines 225 | -9/Materials | Discovered exit to Mines (range 7) 232 | -9/Materials | Entered Mines 302 | -9/Mines | Identified exit to Materials 302 | -9/Mines | Discovered exit to Materials (range 8) 313 | -9/Mines | Build established: Hacker-Mutant 522 | -9/Mines | Found a damaged Exp. Sensor Array with a note attached 525 | -9/Mines | Found Prototype Device 604 | -9/Mines | Discovered exit to Materials (range 7) 677 | -9/Mines | Assembled infested the area 706 | -9/Mines | Found a hidden stash of uninstalled traps 876 | -9/Mines | Deemed a non-threat by the Exiles lab entrance 876 | -9/Mines | Identified exit to Exiles 876 | -9/Mines | Discovered exit to Exiles (range 5) 881 | -9/Mines | Entered Exiles 895 | -9/Exiles | Self-destructed Last Messages --------------- 00706_ A stash of uninstalled traps is collected here! 00706_ T-07 Excavator is excavating. 00722_ as-70720 destroyed. 00734_ The unstable cave ceiling collapses. 00746_ D-53 Grenadier destroyed. 00749_ The unstable cave ceiling collapses. 00776_ Dropped Structural Scanner. 00776_ Acquired Lgt. Armor Plating. 00795_ as-41131 destroyed. 00831_ as-42984 destroyed. 00841_ Searching scrap... 00841_ Found Imp. Targeting Computer. 00841_ Found Mace. 00841_ Found Med. Armor Plating. 00841_ Found 65 Matter. 00876_ "No threat detected, you may enter." 00876_ EXIT=FOUND: EXILES LOCATION=EXILES GOAL=ESCAPE Map ----- +----------------------------------------------------+ | ?????????????????????????????????????????????? | | ?????????????????????????????????????????????? | | ?????????????????????????????????????????????? | | ?????????????????????????????????????????????? | | ?????????????????????????????????????????????? | | ?????????????????????????????????????????????? | | ?????????????????????????????????????????????? | | ?????????????????????????????????????????????? | | ?????????????????????????????????????????????? | | ?????????????????????????????????????????????? | | ?????????????????????????????????????????????? | | ?????????????????????#???????????????????????? | | ?????????????????????# ??????????????????????? | | ????????????????????## ??????????????????????? | | ???????????????????## ??????????????????????? | | ???????????????????# ??????????????????????? | | ?????????????????### ?????????????????????? | | ???????????????### ?????????????????????? | | ????????????""## ?????????????????????? | | ???????????? * #????????????????????? | | ???????????? * ????????????????????? | | ??????????? ##??????????????????? | | ????????????# ###????????????????? | | ???????????????# * ###??????????????? | | ???????????????????# ##?????????????? | | ?????????????????????# @ #?????????????? | | ?????????????????????### #?????????????? | | ???????????????????????### #?????????????? | | ????????????????????????#" ##????????????? | | ????????????????????????#### ###??????????? | | ???????????????????????????# ##?????????? | | ???????????????????????????## ###???????? | | ????????????????????????????### #???????? | | ??????????????????????????????# ##???????? | | ??????????????????????????????## ##????????? | | ???????????????????????????????#####?????????? | | ?????????????????????????????????????????????? | | ?????????????????????????????????????????????? | | ?????????????????????????????????????????????? | | ?????????????????????????????????????????????? | | ?????????????????????????????????????????????? | | ?????????????????????????????????????????????? | | ?????????????????????????????????????????????? | | ?????????????????????????????????????????????? | | ?????????????????????????????????????????????? | | ?????????????????????????????????????????????? | | ?????????????????????????????????????????????? | | ?????????????????????????????????????????????? | | ?????????????????????????????????????????????? | | ?????????????????????????????????????????????? | +----------------------------------------------------+ Best States ------------- Heat Dissipation 28 Energy Generation 15 Energy Capacity 150 Matter Stores 300 Matter Capacity 300 Sight Range 16 Terrain Scan Density 10 Resistance: KI 35 Resistance: TH 35 Resistance: EX 35 Resistance: EM 35 Resistance: I 35 Resistance: S 35 Resistance: P 35 Core Shielding 20 Evasion (%) 55 Offensive Hacking 20 Item Schematics ----------------- None Robot Schematics ------------------ None Fabricated ------------ Nothing Repaired ---------- Nothing Alien Tech Used ----------------- None Achievements -------------- None Challenges ------------ None Game ------ Seed GammaCoordinationDetector Manual? 0 Play Time 00:06:44 Cumulative 119.0 hours Start 2025.09.11 @ 01:52:02 End 2025.10.18 @ 19:26:37 Sessions 3 Manual Loads 0 Difficulty Explorer Special Mode None Game No. 153 Rogue 64 Adventurer 59 Explorer 30 Win Type - Total 15 Types 13/0/2/0/0/0/0/0/0/0 Lore% 39 Gallery% 60 Achievement% 50 Wizard Run 0 Options --------- Layout 2 ASCII 0 Keyboard 1 Movement Arrows Keybinds 1 Fullscreen 2 Font 32/SmallcapsGlow Map View 50x44 Zoom Use 0% Tactical HUD 1 Map Filters NONE Filters NONE Steam 1 RUN: ee644cd6-96a9-4c2f-b3ec-e658c2339af0